Cogmind - Beta 10.2 @@@ ROGUE MODE // 2021.02.17 @ 23:41:22 Player: CrossedViper Result: Destroyed by S-43 Plague with Heavy Machine Gun Performance ------------- Evolutions (9) 4500 Regions Visited (32) 6400 Robots Destroyed (571) 2855 Value Destroyed (30928) 30928 Prototype IDs (35) 700 Alien Tech Used (4) 800 Bonus (19867) 19867 TOTAL SCORE: 66050 Bonus ------- High Alert Combat Kills 4827 Follower Combat Kills 3095 Entered Garrisons 1200 Used RIF Installer 2500 Network Hubs Disabled 800 Built Enhanced Grunts 300 Met R17 at Cetus 500 Used Core Reset Matrix 3000 Met R17 at Research 2000 Scanned by Researcher 500 Met Sigix 2000 Friendly Fire -855 Cogmind --------- Core Integrity 0/1600 Matter 148/300 Energy 84/100 System Corruption 19% Temperature Cool (0) Movement Core (50) Location -1/Command Parts ------- > --- POWER (3) -------- (None) > --- PROPULSION (4) --- Biometal Heavy Treads > --- UTILITY (14) ----- Spectral Analyzer Long-range Terrain Scanner > --- WEAPON (4) ------- (None) > --- INVENTORY (4) ---- EMDS Peak State ------------ > --- POWER ------------ Particle Reactor Particle Reactor Light Quantum Reactor > --- PROPULSION ------- Myomer Leg Myomer Leg Myomer Leg Biometal Leg > --- UTILITY ---------- Advanced Heat Sink Advanced Heat Sink Advanced Coolant Injector Advanced Matter Compressor Spectral Analyzer Experimental Terrain Scan Processor Advanced Targeting Computer Advanced Target Analyzer Quantum Capacitor Advanced Weapon Cycler Advanced ECM Suite Component Analysis Suite Advanced Dynamic Insulation System > --- WEAPON ----------- Heavy Machine Gun Heavy Machine Gun KE Penetrator Multirail > --- INVENTORY -------- Transdimensional Reconstructor Subatomic Replicator EMDS [Rating: 176] Favorites ----------- Power Reinforced Fission Core Engine Cooled Ion Engine Power Core Reinforced Fission Core Reactor Fusion Reactor Propulsion Armored Treads Treads Armored Treads Leg Myomer Leg Wheel Compact Wheel Hover Unit Improved Antigrav System Utility Humpback Device Advanced Heat Sink Storage Humpback Processor Improved Armor Integrity Analyzer Hackware Relay Coupler [NC] Protection Centrium Medium Armor Plating Artifact Phase Armor Weapon Heavy Ion Cannon Energy Gun High-powered Electrolaser Energy Cannon Heavy Ion Cannon Ballistic Gun Improved KE Penetrator Ballistic Cannon Hypervelocity Mass Driver Launcher Grenade Launcher Special Weapon Remote Datajack Slashing Weapon Mining Claw Build | -11 -10 -10 -9 -9 -9 -8 -8 -8 -8 -8 -7 -7 -7 -7 -7 -7 -6 -6 -5 -5 -5 -5 -5 -4 -4 -3 -3 -2 -2 -2 -1 -1 ------- Run | Scr Mat Min Mat Min Exi Min Mat Gar Mat Gar Fac Was Fac Gar Fac Gar Fac Gar Fac Ext Cet Arc Hub Fac Gar Res Tes Res Qua Sec Acc Com Slots Evolved 18 | . . . 2 . . . 2 . . . 2 . . . . . 2 . 2 . . . . 2 . 2 . 2 . . 2 . Power 2 | . . . . . . . . . . . . . . . . . . . . . . . . 1 . . . 1 . . . . Propulsion 2 | . . . . . . . 1 . . . . . . . . . . . . . . . . . . 1 . . . . . . Utility 12 | . . . 2 . . . 1 . . . 2 . . . . . 2 . 2 . . . . 1 . 1 . 1 . . . . Weapon 2 | . . . . . . . . . . . . . . . . . . . . . . . . . . . . . . . 2 . Parts Attached 488 | . 5 6 22 1 7 3 19 4 1 9 29 7 6 10 4 4 5 20 18 12 15 . 42 22 17 3 52 15 28 5 78 19 Power 41 | . . 2 2 . . . 2 . . . . . . 1 . 1 . 1 1 . . . 4 1 4 1 3 2 2 1 10 3 Engine 6 | . . 2 2 . . . 1 . . . . . . . . . . 1 . . . . . . . . . . . . . . Core 7 | . . . . . . . 1 . . . . . . . . . . . . . . . . . 2 . 1 . 2 . 1 . Reactor 28 | . . . . . . . . . . . . . . 1 . 1 . . 1 . . . 4 1 2 1 2 2 . 1 9 3 Propulsion 72 | . 2 1 3 . . . 3 . . 3 2 1 1 2 . . 1 2 1 1 3 . 2 1 2 1 4 1 10 2 20 3 Treads 55 | . 2 1 3 . . . 3 . . 3 2 1 1 2 . . 1 2 1 1 3 . 2 1 2 1 3 1 2 2 12 3 Leg 9 | . . . . . . . . . . . . . . . . . . . . . . . . . . . 1 . 4 . 4 . Wheel 2 | . . . . . . . . . . . . . . . . . . . . . . . . . . . . . . . 2 . Hover 6 | . . . . . . . . . . . . . . . . . . . . . . . . . . . . . 4 . 2 . Flight . | . . . . . . . . . . . . . . . . . . . . . . . . . . . . . . . . . Utility 190 | . 2 . 7 . 4 2 6 . 1 2 7 5 4 2 4 2 2 9 9 5 6 . 22 8 10 1 16 9 7 2 28 8 Device 68 | . . . 3 . 1 1 1 . . 2 1 2 2 . . . 1 2 2 1 1 . 8 4 2 . 6 4 2 . 18 4 Storage 25 | . 2 . . . 1 . 1 . . . 1 1 1 . 2 . . . 1 1 . . 1 . 2 1 5 2 . . 3 . Processor 11 | . . . . . . . 1 . . . 1 . . . . . . . . . . . . . 1 . . 1 2 2 3 . Hackware 19 | . . . . . . . . . . . 1 . . . . . . 5 5 . . . 2 2 3 . . . . . 1 . Protection 66 | . . . 4 . 2 1 3 . 1 . 3 2 1 2 2 2 1 2 1 3 5 . 11 2 2 . 5 2 2 . 3 4 Artifact 1 | . . . . . . . . . . . . . . . . . . . . . . . . . . . . . 1 . . . Weapon 185 | . 1 3 10 1 3 1 8 4 . 4 20 1 1 5 . 1 2 8 7 6 6 . 14 12 1 . 29 3 9 . 20 5 Energy Gun 36 | . . 1 4 . . 1 . . . . 8 . 1 1 . 1 . 1 . . 1 . . 1 . . 6 1 4 . 3 2 Energy Cannon 48 | . 1 . 3 . 1 . 4 3 . 2 6 . . . . . . . . . . . 1 6 1 . 9 1 4 . 5 1 Ballistic Gun 48 | . . . 2 . 2 . 3 . . . 1 1 . 2 . . 2 3 . . 3 . 7 3 . . 5 . . . 12 2 Ballistic Cannon 13 | . . 1 . . . . . . . . . . . . . . . 1 3 2 . . . . . . 6 . . . . . Launcher 26 | . . 1 . 1 . . 1 1 . 2 4 . . 2 . . . . 2 3 2 . 4 1 . . . 1 1 . . . Special Weapon 13 | . . . . . . . . . . . 1 . . . . . . 3 2 1 . . 2 1 . . 3 . . . . . Impact Weapon . | . . . . . . . . . . . . . . . . . . . . . . . . . . . . . . . . . Slashing Weapon 1 | . . . 1 . . . . . . . . . . . . . . . . . . . . . . . . . . . . . Piercing Weapon . | . . . . . . . . . . . . . . . . . . . . . . . . . . . . . . . . . Special Melee Weapon . | . . . . . . . . . . . . . . . . . . . . . . . . . . . . . . . . . Unidentified Prototypes 39 | . . . 5 . . . 1 . . . 2 . . 1 . . . . 2 . 4 . 4 . . . 10 2 3 1 4 . Parts Lost 138 | . 1 4 . . 1 2 4 3 . 4 5 . . 7 . 4 . . 1 2 1 . 10 2 6 1 8 2 21 . 33 16 Power 21 | . . 2 . . . . 1 . . . . . . 1 . . . . 1 . . . 2 . 1 . 1 . 3 . 5 4 Propulsion 21 | . . 1 . . . . . . . 1 1 . . 2 . 1 . . . 1 . . . . 1 . 1 . 7 . 3 2 Utility 58 | . . . . . . 1 . 1 . 1 1 . . 1 . 2 . . . 1 . . 7 2 4 1 5 2 8 . 14 7 Weapon 38 | . 1 1 . . 1 1 3 2 . 2 3 . . 3 . 1 . . . . 1 . 1 . . . 1 . 3 . 11 3 Highest Loss Streak 15 | . 1 2 . . 1 1 1 1 . 2 2 . . 6 . 2 . . 1 1 1 . 6 1 5 1 2 2 15 . 13 15 Average Slot Usage (%) 75 | . 96 98 91 88 81 76 83 83 86 87 89 80 75 72 73 65 61 64 67 69 71 82 74 71 71 69 76 77 69 26 72 33 Engine 2 | . 14 12 11 11 11 11 6 . . . . . . . . . . 2 3 . . . . . . . . . . . . . Core 2 | . . . . . . . 2 9 9 9 7 7 7 4 . . . . . . . . . . 4 4 6 . . . . . Reactor 3 | . . . . . . . . . . . . . . 2 7 7 6 3 1 5 5 5 4 8 5 4 1 13 10 . 8 3 Treads 14 | . 16 27 22 22 22 22 27 27 27 26 21 16 14 14 15 7 8 13 11 10 8 11 10 10 9 9 8 8 2 8 6 6 Device 9 | . . . 4 . 4 2 5 9 9 9 15 15 6 4 . . 5 . 2 10 12 17 14 18 20 15 12 16 15 4 21 6 Storage 12 | . 24 28 22 22 13 11 9 9 9 9 7 10 15 15 15 15 13 13 11 11 11 11 11 6 8 10 17 19 14 . 1 . Processor 5 | . . . . . . . 9 9 9 9 3 7 7 7 7 7 6 6 5 5 5 5 4 . 4 4 4 4 7 12 15 7 Hackware 2 | . . . . . . . . . . . 6 . . . . . . 4 11 5 . . . . 1 9 6 4 3 . 1 . Protection 7 | . . . 10 11 10 8 6 2 5 6 11 6 7 8 12 11 6 5 5 5 12 17 13 18 10 4 9 5 2 . 1 2 Energy Gun 2 | . 14 10 14 . . 3 . . . . 3 7 14 8 . 5 4 1 . . . . . . . . 1 . 2 . 1 1 Energy Cannon 3 | . . 5 2 16 6 11 11 17 18 14 9 . . . . . . . . . . . . 2 4 4 1 2 1 . . . Ballistic Gun 4 | . 13 . 3 . 9 7 4 . . . . 7 . 4 15 7 7 5 . . 3 11 10 3 . . . . . . 9 5 Launcher 1 | . . 11 . 5 2 . . . . 3 1 . . . . . . . . 1 7 . . . . . . 1 . . . . Naked Turns . | . . . . . . . . . . . . . . . . . . . . . . . . . . . . . . . . . Heaviest Build 259 | 10 40 43 66 63 115 113 119 119 119 119 124 194 194 195 186 186 227 235 247 248 216 216 252 259 171 122 198 219 207 17 106 81 Greatest Support 160 | 20 40 40 52 40 40 40 68 68 68 76 76 90 90 90 90 90 90 100 100 100 103 103 107 107 107 160 160 135 135 120 155 150 Greatest Overweight (x) 7 | . 1 1 1 1 2 5 1 1 1 1 2 2 2 2 2 2 3 2 2 2 2 2 2 2 1 . 1 1 7 . 5 3 Average Overweight (x) 1 | . . . . 1 1 2 1 1 1 1 1 1 2 1 1 2 2 1 2 1 2 2 1 1 . . . 1 1 . . . Largest Inventory Capacity 64 | . 16 16 16 16 30 24 44 24 24 24 44 44 64 44 64 44 44 44 64 64 44 44 44 44 24 16 36 36 36 4 4 4 Average Capacity 28 | . 13 16 16 16 16 24 24 24 24 24 24 31 44 44 44 44 44 44 44 44 44 44 44 31 10 11 21 36 30 4 4 4 Most Carried 44 | . 12 16 16 16 24 23 24 24 24 24 24 39 39 44 42 44 43 44 44 43 44 44 44 44 22 10 19 22 33 4 4 3 Average Carried 25 | . 6 15 15 16 14 21 21 23 24 23 23 27 39 40 40 41 42 42 42 40 39 44 40 29 10 9 14 18 22 4 3 2 Final Capacity 44 | 6 16 16 16 16 24 24 24 24 24 24 24 44 44 44 44 44 44 44 44 44 44 44 44 24 10 16 36 36 4 4 4 4 Final Carried 44 | 6 11 16 16 16 23 21 24 24 24 24 23 39 39 40 40 44 42 44 43 39 44 44 44 22 10 10 18 21 4 4 3 2 Class Distribution -------------------- 27% | Scavenger-Mutant 25% | Hauler-Mutant 24% | Bothacker-Mutant 14% | Mutant 4% | Scavenger-Gunner 3% | Botlord-Mutant Dominant Class ---------------- Mutant | -10/Materials Mutant | -10/Mines Mutant | -9/Materials Mutant | -9/Mines Mutant | -9/Exiles Hauler-Mutant | -8/Mines Hauler-Mutant | -8/Materials Hauler-Mutant | -8/Garrison Hauler-Mutant | -8/Materials Hauler-Mutant | -8/Garrison Bothacker-Mutant | -7/Factory Scavenger-Mutant | -7/Waste Hauler-Mutant | -7/Factory Bothacker-Mutant | -7/Garrison Bothacker-Mutant | -7/Factory Bothacker-Mutant | -7/Garrison Bothacker-Mutant | -6/Factory Bothacker-Mutant | -6/Garrison Botlord-Mutant | -5/Factory Bothacker-Mutant | -5/Extension Bothacker-Mutant | -5/Cetus Bothacker-Mutant | -5/Archives Hauler-Mutant | -5/Hub_04(d) Scavenger-Mutant | -4/Factory Scavenger-Mutant | -4/Garrison Scavenger-Mutant | -3/Research Scavenger-Mutant | -3/Testing Scavenger-Mutant | -2/Research Scavenger-Mutant | -2/Quarantine Mutant | -2/Section 7 Scavenger-Gunner | -1/Access Scavenger-Mutant | -1/Command Resources | -11 -10 -10 -9 -9 -9 -8 -8 -8 -8 -8 -7 -7 -7 -7 -7 -7 -6 -6 -5 -5 -5 -5 -5 -4 -4 -3 -3 -2 -2 -2 -1 -1 ----------- Run | Scr Mat Min Mat Min Exi Min Mat Gar Mat Gar Fac Was Fac Gar Fac Gar Fac Gar Fac Ext Cet Arc Hub Fac Gar Res Tes Res Qua Sec Acc Com Matter Collected 15838 | 200 78 93 167 116 473 146 315 40 10 160 359 333 . 265 83 425 110 545 810 645 176 16 2327 1034 758 536 1857 456 661 89 2328 227 Remotely . | . . . . . . . . . . . . . . . . . . . . . . . . . . . . . . . . . Salvage Created 33543 | . 500 347 251 198 351 518 1032 567 139 678 1942 1920 74 865 18 719 118 267 1629 976 227 87 4126 1874 1604 1562 4114 1040 889 . 4505 406 Parts 1480 | . 28 22 21 12 52 15 67 34 5 38 78 45 4 43 1 33 8 21 77 42 8 2 242 71 46 37 138 40 39 . 201 10 Haulers Intercepted 17 | . 2 . 2 . . . 1 . . . 2 . . . . . . . 1 1 . . . 2 . 3 1 1 . . 1 . Recyclers Shooed 7 | . . . . . . . 1 . . . 1 . . . . . . . . 1 . . . . . . 1 1 . . 1 1 Parts Field Recycled . | . . . . . . . . . . . . . . . . . . . . . . . . . . . . . . . . . Retrieved Matter . | . . . . . . . . . . . . . . . . . . . . . . . . . . . . . . . . . Parts Self-Destructed . | . . . . . . . . . . . . . . . . . . . . . . . . . . . . . . . . . Prevented . | . . . . . . . . . . . . . . . . . . . . . . . . . . . . . . . . . Kills | -11 -10 -10 -9 -9 -9 -8 -8 -8 -8 -8 -7 -7 -7 -7 -7 -7 -6 -6 -5 -5 -5 -5 -5 -4 -4 -3 -3 -2 -2 -2 -1 -1 ------- Run | Scr Mat Min Mat Min Exi Min Mat Gar Mat Gar Fac Was Fac Gar Fac Gar Fac Gar Fac Ext Cet Arc Hub Fac Gar Res Tes Res Qua Sec Acc Com Combat Hostiles Destroyed 478 | . 9 8 2 9 7 9 26 16 4 20 24 6 1 19 . 15 2 6 25 14 2 1 54 28 23 16 49 13 12 . 51 7 Melee 3 | . . . 1 . . . . . . . 1 . . . . . . . . . . . 1 . . . . . . . . . Guns 168 | . 7 1 1 . . 6 3 . . . 5 6 . 4 . 15 2 6 . . 1 1 45 4 . . 10 1 3 . 40 7 Cannons 134 | . 2 5 . 4 . 3 21 12 4 7 10 . . . . . . . 17 7 . . . 5 6 6 9 1 8 . 7 . AOE 83 | . . 2 . 5 7 . 1 4 . 13 5 . . 12 . . . . 8 7 . . 6 7 1 . . 5 . . . . Classes Destroyed 27 | . 4 1 . 4 2 . 2 . . . 4 1 . . 1 . . 1 . . . . 2 . . . 3 . 2 . . . Worker 20 | . . . . 1 . . 1 . . . 2 . . . . . . . 2 2 . . 5 2 . 2 1 . . . 2 . Builder 10 | . . . . . . . . . . . 2 . . . . . . . 1 1 . . 1 1 . . 2 . . . 2 . Tunneler 5 | . . . . 1 . 1 . . . . . . . . . . . . 1 1 . . 1 . . . . . . . . . Hauler 17 | . 2 . 2 . . . 1 . . . 2 . . . . . . . 1 1 . . . 2 . 3 1 1 . . 1 . Recycler 17 | . 1 . . . . . . . . . 4 . . . . . . . 3 1 . . 2 . . . 3 2 . . 1 . Mechanic 3 | . . . . . . . . . . . 2 . . . . . . . . . . . . . . . . . 1 . . . Operator 2 | . . . . . . . . . . . . . . . 1 . . . . . . . . . . . 1 . . . . . Turret 1 | . . . . . 1 . . . . . . . . . . . . . . . . . . . . . . . . . . . Watcher 16 | . . . . . . . 1 . . . . . 1 . . . . 1 . . 2 . 2 2 . 3 1 . . . 3 . Swarmer 91 | . 3 . 1 . . . 10 7 2 11 . . . 10 . 4 . 4 9 5 . . 4 4 3 3 . 5 . . 6 . Saboteur 2 | . . . . . . . . . . . . . . . . . . . . . . . 1 . . . 1 . . . . . Grunt 162 | . 6 6 . 3 . 9 9 7 2 7 13 . . 3 . 8 . . 5 2 1 . 8 5 13 5 23 2 . . 20 5 Brawler 7 | . . . . 1 . . . . . . 1 . . 1 . . . . . . . . . . . 1 2 . . . 1 . Duelist 11 | . . . . . . . . . . . 2 . . . . 2 . . . . . . 3 2 1 . 1 . . . . . Protector 5 | . . . . . . . . . . . . . . . . . . . . . . . 3 1 . . . . . . 1 . Researcher 2 | . . . . . . . . . . . . . . . . . . . . . . . . . . . 2 . . . . . Sentry 54 | . . 2 . . . . 6 1 . 1 2 . . 5 . 1 1 . 4 5 . 1 7 1 3 4 3 2 . . 4 1 Specialist 3 | . . . . . . . . . . . . . . . . . . . . . . . . . . . . . 3 . . . Hunter 46 | . . . . . . . 1 1 . 1 3 . 1 . . . . . 4 1 . . 6 9 2 3 6 . . . 8 . Programmer 53 | . . . . . . . . . . . 3 . . . . . 1 . 4 . . . 9 6 . . 10 3 7 . 9 1 Q-Series 4 | . . . . . . . . . . . . . . . . . . . . . . . . . . . . . 2 . 2 . Behemoth 6 | . . . . . . . . . . . . . . . . . . 2 . 1 . . 1 . 1 . . 1 . . . . Compactor 6 | . . . . . . . . . . . . 6 . . . . . . . . . . . . . . . . . . . . Cetus Guard 1 | . . . . . . . . . . . . . . . . . . . . . 1 . . . . . . . . . . . Lightning 12 | . . . . . . . . . . . . . . . . . . . . . . . 12 . . . . . . . . . Striker 2 | . . . . . . . . . . . . . . . . . . . . . . . . . . . 2 . . . . . Alpha 7 1 | . . . . . . . . . . . . . . . . . . . . . . . . . . . 1 . . . . . Zionite 8 | . . . . . 8 . . . . . . . . . . . . . . . . . . . . . . . . . . . Assembled 12 | . . . . 5 7 . . . . . . . . . . . . . . . . . . . . . . . . . . . Thug 1 | . . . . . . . . . . . . 1 . . . . . . . . . . . . . . . . . . . . Best Kill Streak 15 | . 3 2 2 5 7 3 6 5 2 6 12 2 1 15 1 10 1 3 14 8 2 1 10 10 11 7 7 6 4 . 9 2 Combat Bots Only 15 | . 3 2 1 5 7 3 5 5 2 6 6 2 1 15 . 10 1 3 8 7 1 1 10 9 11 5 6 6 3 . 9 2 Max Kills in Single Turn 5 | . 1 1 1 2 2 1 2 4 1 2 2 2 1 5 1 1 1 1 3 3 1 1 2 5 2 2 2 3 1 . 3 1 Gunslinging 1 | . . . . . . . 1 . . . . . . . . . . . . . . . 1 . . . . . . . . . Exploded 5 | . . 1 . 2 2 . 1 4 . 2 2 . . 5 . . . . 3 3 . . 2 5 1 . . 3 . . . . Melee 1 | . . . 1 . . . . . . . 1 . . . . . . . . . . . 1 . . . . . . . . . Uniques/NPCs Destroyed 4 | . . . 1 . 3 . . . . . . . . . . . . . . . . . . . . . . . . . . . 8R-AWN (-9/Materials) EX-HEX (-9/Exiles) EX-DEC (-9/Exiles) EX-BIN (-9/Exiles) Combat | -11 -10 -10 -9 -9 -9 -8 -8 -8 -8 -8 -7 -7 -7 -7 -7 -7 -6 -6 -5 -5 -5 -5 -5 -4 -4 -3 -3 -2 -2 -2 -1 -1 -------- Run | Scr Mat Min Mat Min Exi Min Mat Gar Mat Gar Fac Was Fac Gar Fac Gar Fac Gar Fac Ext Cet Arc Hub Fac Gar Res Tes Res Qua Sec Acc Com Damage Taken 49603 | . 294 371 146 588 433 819 1371 614 141 727 1561 . 127 2004 . 1139 198 1322 1106 2045 379 81 4136 1843 1970 575 4524 1426 5299 865 8704 4795 Core 4644 | . 39 40 . 91 10 34 96 52 . 92 213 . . 223 . 90 12 53 2 24 . . 191 35 122 25 404 70 1070 92 835 729 Absorbed by Shields 451 | . . . . . . . . . . 13 . . . 27 . 26 . 99 . 72 121 . . . 93 . . . . . . . Reduced by Siege Mode 1886 | . . . . . . . . . . . . . 13 112 . 49 . 13 . 35 . . 62 20 88 . 390 109 24 . 732 239 Redirected to Core 128 | . . . . . . . . . . . . . . . . . . . . . . . . . . . . . 128 . . . Core Remaining (%) 65 | 100 . 68 . . . 66 . . . 56 . . . . . 24 . 92 . . . . 78 . 86 . 67 . . 15 . . Volleys Fired 1725 | . 34 22 8 21 65 29 65 30 9 37 87 45 10 35 1 51 10 56 61 76 7 4 214 106 60 51 209 51 75 . 167 29 Largest 4 | . 2 2 2 2 2 2 2 2 2 2 2 2 2 2 2 2 2 2 2 2 2 2 2 2 1 1 2 1 1 . 4 4 Hottest 283 | . 110 110 90 136 98 133 133 130 130 130 140 100 140 150 56 97 97 70 132 132 86 70 85 80 70 70 169 100 120 . 283 248 Shots Fired 2713 | . 67 40 16 34 77 49 113 58 18 60 161 75 20 40 3 69 20 78 95 123 12 8 412 122 60 51 222 51 76 . 423 60 Gun 1551 | . 63 13 16 . 38 28 36 . . . 45 75 20 26 3 69 20 52 . . 2 8 392 55 . . 101 23 20 . 386 60 Cannon 962 | . 4 24 . 26 25 21 72 57 18 41 102 . . . . . . 1 75 100 . . . 53 60 51 114 26 55 . 37 . Launcher 119 | . . 3 . 8 14 . 5 1 . 19 12 . . 14 . . . . 6 9 10 . 11 4 . . . 2 1 . . . Special 81 | . . . . . . . . . . . 2 . . . . . . 25 14 14 . . 9 10 . . 7 . . . . . Kinetic 1367 | . 29 5 6 . 38 21 35 . . . 5 45 . 1 3 54 11 45 75 100 2 8 392 45 . . 58 . . . 332 57 Thermal 716 | . 38 32 . 26 25 28 73 57 18 41 141 30 20 25 . 15 9 8 . . . . . 10 . . 33 23 28 . 33 3 Explosive 33 | . . 3 . 8 14 . . . . . . . . . . . . . . . . . 1 4 . . . 2 1 . . . Electromagnetic 516 | . . . 10 . . . 5 1 . 19 13 . . 14 . . . . 6 9 10 . 10 53 60 51 124 26 47 . 58 . Robot Hit Streak 71 | . 7 11 13 5 7 9 14 17 12 22 43 11 15 9 5 16 21 50 13 19 23 5 27 15 29 43 35 47 71 . 56 22 Robot Miss Streak 7 | . 3 2 2 2 3 2 2 2 1 3 4 3 1 2 4 7 5 6 2 3 1 1 3 2 2 1 2 2 2 . 5 2 Penetration Max 2 | . . . . . 1 1 . . . . 1 1 . . . . . . 1 2 1 . 1 1 1 1 1 1 1 . 1 . Secondary Targets 16 | . 2 . . . . . 1 . . . . . . . . . . 1 . . . . 6 . . . . . . . 3 3 Max Gunslinging Chain 1 | . 1 . . . . . 1 . . . . . . . . . . 1 . . . . 1 . . . . . . . 1 1 Capacitor 420 | . . . . . . . . . . . . . . . . . . . . . . . . 63 60 51 113 49 74 . 10 . Shots Hit Robots 2024 | . 45 28 11 17 40 35 83 42 14 33 122 50 15 28 2 65 18 65 69 78 5 6 291 84 50 40 199 47 59 . 333 50 Core Hits 1025 | . 26 12 7 15 35 17 38 20 6 28 56 16 2 31 3 64 10 43 46 41 13 2 145 45 19 15 62 16 28 1 148 15 Critical Hits 375 | . . . 2 4 11 10 4 . . . 4 19 . . . . . . 43 53 3 2 76 17 8 12 39 6 13 . 48 1 Critical Kills 134 | . . . 1 1 4 5 3 . . . 2 7 . . . . . . 23 9 1 1 31 5 2 5 11 1 4 . 17 1 Critical Parts Destroyed 197 | . . . 1 3 4 5 1 . . . 2 2 . . . . . . 19 34 2 1 44 12 5 7 24 . 8 . 23 . Melee Attacks 1 | . . . 1 . . . . . . . . . . . . . . . . . . . . . . . . . . . . . Impact . | . . . . . . . . . . . . . . . . . . . . . . . . . . . . . . . . . Slashing 1 | . . . 1 . . . . . . . . . . . . . . . . . . . . . . . . . . . . . Piercing . | . . . . . . . . . . . . . . . . . . . . . . . . . . . . . . . . . Sneak Attacks . | . . . . . . . . . . . . . . . . . . . . . . . . . . . . . . . . . Combat Hostiles . | . . . . . . . . . . . . . . . . . . . . . . . . . . . . . . . . . Follow-up Attacks . | . . . . . . . . . . . . . . . . . . . . . . . . . . . . . . . . . Damage Inflicted 67209 | . 529 631 177 624 1195 621 2224 1169 407 1496 4303 1200 338 1568 26 1193 366 1101 1589 2190 831 204 8563 4283 2978 2928 9033 2664 2466 10 9050 1252 Guns 28908 | . 476 99 131 . 346 294 325 . . . 859 1200 338 467 26 1193 366 1101 . . 42 204 6975 853 . . 2885 1055 648 . 7797 1228 Cannons 27860 | . 52 305 . 350 409 290 1540 1088 407 769 2343 . . . . . . . 1176 1536 . . . 2312 2911 2894 5827 921 1490 . 1240 . Explosions 9862 | . . 163 . 226 440 . 327 81 . 727 1083 . . 1101 . . . . 334 604 772 . 1503 1106 67 . 312 688 328 . . . Melee 23 | . . . 23 . . . . . . . . . . . . . . . . . . . . . . . . . . . . . Ramming 556 | . 1 64 23 48 . 37 32 . . . 18 . . . . . . . 79 50 17 . 85 12 . 34 9 . . 10 13 24 Kinetic 24155 | . 128 78 71 . 346 238 325 . . . 88 683 . . 26 923 205 1051 1176 1536 42 204 6975 537 . . 1712 . . . 6659 1152 Thermal 15877 | . 400 326 . 350 409 346 1553 1088 407 799 3176 517 338 766 . 270 161 50 78 110 . . 109 337 67 . 1516 1055 907 . 666 76 Explosive 3411 | . . 163 . 226 440 . . . . . . . . . . . . . . . . . 481 1085 . . . 688 328 . . . Electromagnetic 23187 | . . . 60 . . . 314 81 . 697 1021 . . 802 . . . . 256 494 772 . 913 2312 2911 2894 5796 921 1231 . 1712 . Impact . | . . . . . . . . . . . . . . . . . . . . . . . . . . . . . . . . . Slashing 23 | . . . 23 . . . . . . . . . . . . . . . . . . . . . . . . . . . . . Piercing . | . . . . . . . . . . . . . . . . . . . . . . . . . . . . . . . . . Highest Corruption 43 | . . . 2 2 2 2 . . . . 2 40 40 43 43 43 . . . . . . 11 2 2 . 19 7 14 6 19 20 Average Corruption 11 | . . . 2 2 2 2 . . . . 1 22 40 41 43 43 . . . . . . 8 1 2 . 11 6 9 3 5 19 Corruption Purged 1 | . . . . . . . . . . . . . . . . . . . . . . . . . . . . . . . . 1 Effects 638 | . . . 1 5 15 15 . . . . 4 42 33 62 22 73 . . . . . . 99 1 7 . 109 8 44 3 57 38 Message Errors 114 | . . . 1 3 9 7 . . . . 1 11 5 11 5 1 . . . . . . 13 . 2 . 24 2 5 . 9 5 Matter Fused 88 | . . . . . . . . . . . . 4 2 7 6 10 . . . . . . 18 . . . 18 . 7 . 12 4 Heat Flow Errors 51 | . . . . 1 1 1 . . . . 1 2 3 2 1 6 . . . . . . 9 . 3 . 6 . 3 2 6 4 Energy Discharges 52 | . . . . . 2 2 . . . . . 2 2 3 4 4 . . . . . . 9 1 1 . 10 2 4 . 3 3 Parts Rejected 10 | . . . . . . . . . . . . . 2 1 . 1 . . . . . . 1 . . . 2 . . . 1 2 Data Loss (minor) 52 | . . . . . 2 2 . . . . 1 2 1 5 2 6 . . . . . . 9 . 1 . 6 2 6 1 6 . Data Loss (major) 18 | . . . . . . . . . . . . . 2 . . . . . . . . . 5 . . . 7 1 1 . . 2 Misfires 16 | . . . . . . . . . . . . 3 1 1 1 . . . . . . . 3 . . . 3 . 3 . . 1 Alerts 3 | . . . . . . . . . . . . . . . . 2 . . . . . . . . . . 1 . . . . . Misdirections 45 | . . . . . . . . . . . . 5 8 9 3 4 . . . . . . . . . . 10 . . . 1 5 Targeting Errors 155 | . . . . 1 1 3 . . . . 1 11 6 17 . 29 . . . . . . 29 . . . 17 1 13 . 15 11 Weapon Failures 34 | . . . . . . . . . . . . 2 1 6 . 10 . . . . . . 3 . . . 5 . 2 . 4 1 Overload Shots . | . . . . . . . . . . . . . . . . . . . . . . . . . . . . . . . . . Overflow Damage 1029 | . . 3 . 1 5 . 40 28 10 20 69 . . 5 . . . . 10 . 23 . 58 96 41 108 426 57 2 . 27 . Projectiles 758 | . . 2 . 1 3 . 40 28 10 20 36 . . . . . . . . . . . . 79 41 108 336 25 2 . 27 . Explosions 263 | . . . . . 2 . . . . . 33 . . 5 . . . . 3 . 23 . 58 17 . . 90 32 . . . . Melee 8 | . . 1 . . . . . . . . . . . . . . . . 7 . . . . . . . . . . . . . Knockbacks 25 | . . 3 . . . . . . . . . . . . . . . . 14 5 . . . . . . 3 . . . . . Impact 2 | . . 1 . . . . . . . . . . . . . . . . 1 . . . . . . . . . . . . . Kinetic 22 | . . 2 . . . . . . . . . . . . . . . . 12 5 . . . . . . 3 . . . . . Secondary 1 | . . . . . . . . . . . . . . . . . . . 1 . . . . . . . . . . . . . Self-Inflicted Damage 628 | . . . . 133 12 . 31 . . 14 . . . 214 . . . . 1 . . . 144 . . . . . 79 . . . Shots 33 | . . . . 5 1 . 1 . . 1 . . . 13 . . . . 1 . . . 10 . . . . . 1 . . . Rammed 59 | . . 8 4 15 . 1 2 . . . 1 . . . . . . . . 2 1 . 5 2 . 3 3 . . 2 4 6 Targets Rammed 67 | . 1 8 4 16 . 2 3 . . . 2 . . . . . . . 2 2 1 . 6 2 . 3 3 . . 2 4 6 Kicked 1 | . 1 . . . . . . . . . . . . . . . . . . . . . . . . . . . . . . . Crushed 7 | . . . . 1 . 1 1 . . . 1 . . . . . . . 2 . . . 1 . . . . . . . . . Highest Temperature 547 | . 238 414 84 452 325 547 328 199 198 199 150 169 199 271 131 288 1 104 291 376 . . 536 117 204 108 418 388 199 182 458 225 Average Temperature 100 | . 57 176 29 142 109 194 123 113 103 79 27 21 84 66 75 113 1 32 93 138 . . 111 23 40 42 107 119 83 91 83 129 Received Heat Transfer 6525 | . 126 177 18 248 60 432 405 234 45 171 372 . . 405 . 231 60 168 117 153 43 9 504 48 268 84 327 144 369 117 693 497 Effects 33 | . . 3 . 1 1 4 1 . . . . . . . . 1 . . 3 1 . . 5 . . . 8 . . . 5 . Shutdowns 4 | . . . . 1 . . . . . . . . . . . . . . . . . . . . . . 1 . . . 2 . Energy Bleed 9 | . . . . . 1 2 1 . . . . . . . . 1 . . . . . . 2 . . . 2 . . . . . Interference 12 | . . 1 . . . 1 . . . . . . . . . . . . 3 . . . 1 . . . 4 . . . 2 . Matter Decay 2 | . . . . . . . . . . . . . . . . . . . . 1 . . 1 . . . . . . . . . Short Circuit 3 | . . . . . . 1 . . . . . . . . . . . . . . . . 1 . . . . . . . 1 . Damage (minor) 3 | . . 2 . . . . . . . . . . . . . . . . . . . . . . . . 1 . . . . . Siege Activations 67 | . . . . . . . . . . . . . 1 2 . 4 1 1 4 4 . . 13 4 3 1 14 2 1 . 9 3 Total Turns 1527 | . . . . . . . . . . . . . 17 52 . 75 9 38 44 162 . . 344 57 38 4 285 30 10 . 331 31 Longest Duration 111 | . . . . . . . . . . . . . 17 28 . 35 9 38 24 72 . . 111 23 31 4 50 19 10 . 90 24 Robots Corrupted 91 | . . . . . . . 1 . . . 2 . . 3 . . . . . . 1 . 2 12 16 14 31 4 1 . 4 . Combat Hostiles 84 | . . . . . . . 1 . . . 2 . . 3 . . . . . . 1 . 2 11 16 10 29 4 1 . 4 . Parts Fried 201 | . . . . . . . 1 1 . 4 . . . 5 . . . . 4 . 3 . 5 23 35 25 62 12 4 . 17 . Impact Corruptions 2 | . . 1 . . . . . . . . . . . . . . . . 1 . . . . . . . . . . . . . Robots Melted 6 | . . . . . . . . . . . 1 . 1 . . . . . . . . . . 1 . . 1 2 . . . . Combat Hostiles 6 | . . . . . . . . . . . 1 . 1 . . . . . . . . . . 1 . . 1 2 . . . . Parts Melted 47 | . 1 1 . 2 3 . 5 5 2 . 7 . 1 1 . 1 . . 1 . . . 1 5 . . 1 5 1 . 3 1 Heat Transferred 20863 | . 1147 777 . 629 740 666 2172 1406 518 999 4268 777 518 787 . 518 296 74 150 150 . . 100 383 75 . 1347 814 627 . 851 74 Parts Sabotaged 4 | . . . . . . . . . . . . . . . . . . . . . . . 1 . . . . . . . 3 . Parts Stolen . | . . . . . . . . . . . . . . . . . . . . . . . . . . . . . . . . . Parts Stripped . | . . . . . . . . . . . . . . . . . . . . . . . . . . . . . . . . . Power Chain Reactions 23 | . . . . . . . 1 3 . 3 2 . . 5 . . . . 3 1 . . 2 1 1 . 1 . . . . . Missiles Intercepted . | . . . . . . . . . . . . . . . . . . . . . . . . . . . . . . . . . Alert | -11 -10 -10 -9 -9 -9 -8 -8 -8 -8 -8 -7 -7 -7 -7 -7 -7 -6 -6 -5 -5 -5 -5 -5 -4 -4 -3 -3 -2 -2 -2 -1 -1 ------- Run | Scr Mat Min Mat Min Exi Min Mat Gar Mat Gar Fac Was Fac Gar Fac Gar Fac Gar Fac Ext Cet Arc Hub Fac Gar Res Tes Res Qua Sec Acc Com Peak Influence 1530 | . 244 259 133 170 . 133 510 808 555 935 1074 336 166 548 307 457 265 494 488 388 668 381 1530 802 1030 1093 894 851 541 233 748 931 Initial 742 | . . 94 . 10 . . 51 331 393 360 490 336 95 116 287 112 239 27 259 . 190 187 133 742 317 579 506 502 402 233 19 476 Average 380 | . 135 83 72 92 . 48 242 637 441 686 662 274 151 350 224 332 159 302 195 189 449 318 530 367 779 778 423 656 451 34 336 748 Maximum Alert Level 4 | . 1 1 . . . . 2 3 2 3 3 1 . 2 1 2 1 2 2 1 2 1 4 3 3 3 3 3 2 1 3 3 Low Security (%) 32 | . 87 83 100 100 . 100 42 . . . . 30 100 17 51 9 60 30 42 48 8 15 27 30 . . 12 . . 93 26 . Level 1 28 | . 12 16 . . . . 38 17 52 8 . 69 . 41 48 76 39 34 53 51 39 84 25 26 10 . 37 . 18 6 38 . Level 2 23 | . . . . . . . 18 18 48 31 68 . . 41 . 13 . 34 4 . 52 . 23 25 13 42 38 60 81 . 26 26 Level 3 13 | . . . . . . . . 63 . 59 30 . . . . . . . . . . . 4 18 75 57 11 39 . . 7 73 Level 4 1 | . . . . . . . . . . . . . . . . . . . . . . . 19 . . . . . . . . . Level 5 . | . . . . . . . . . . . . . . . . . . . . . . . . . . . . . . . . . High Security . | . . . . . . . . . . . . . . . . . . . . . . . . . . . . . . . . . Max Security . | . . . . . . . . . . . . . . . . . . . . . . . . . . . . . . . . . Squads Dispatched 93 | . 1 . 3 . . 1 4 . 1 . 12 . 1 . 1 . 1 . 5 1 . . 14 10 . 4 11 2 5 1 14 1 Investigation 12 | . . . . . . . 3 . . . 1 . . . . . . . 1 . . . 1 1 . 2 1 . 1 . 1 . Extermination 26 | . . . . . . . . . . . 3 . 1 . 1 . 1 . 2 . . . 4 2 . . 4 1 2 . 5 . Reinforcement 32 | . 1 . 3 . . 1 1 . 1 . 3 . . . . . . . 2 1 . . 4 5 . 2 3 . 2 1 2 . Assault 13 | . . . . . . . . . . . 2 . . . . . . . . . . . 2 2 . . 2 1 . . 3 1 Garrison 10 | . . . . . . . . . . . 3 . . . . . . . . . . . 3 . . . 1 . . . 3 . Intercept . | . . . . . . . . . . . . . . . . . . . . . . . . . . . . . . . . . Construction Impeded 8 | . . . . . . 1 . . . . 1 . . . . . . . . 1 . . 1 1 . . . . 1 . 2 . Haulers Reinforced 7 | . . . . . . . . . . . 2 . . . . . . . 1 . . . . 1 . 2 1 . . . . . Alert ID Control Effect 13 | . . . . . . . . . . . . . . . . . . 11 2 . . . . . . . . . . . . . Stealth | -11 -10 -10 -9 -9 -9 -8 -8 -8 -8 -8 -7 -7 -7 -7 -7 -7 -6 -6 -5 -5 -5 -5 -5 -4 -4 -3 -3 -2 -2 -2 -1 -1 --------- Run | Scr Mat Min Mat Min Exi Min Mat Gar Mat Gar Fac Was Fac Gar Fac Gar Fac Gar Fac Ext Cet Arc Hub Fac Gar Res Tes Res Qua Sec Acc Com Distress Signals 28 | . . . 2 . . . 1 . . . 3 . . . . . . . 3 1 2 . 1 2 . 6 . . 1 2 2 2 Communications Jammed 55 | . . . . . . . . . . . . . . . . . . . . . . . . . . . . . . . . 55 Distress Signals 55 | . . . . . . . . . . . . . . . . . . . . . . . . . . . . . . . . 55 Times Spotted 803 | . 14 8 14 12 15 9 37 17 7 23 45 9 2 26 1 15 4 30 30 32 13 4 85 35 30 26 74 14 36 12 81 43 Peak Tracking Total 15 | . 3 2 3 6 8 3 7 5 3 5 8 2 1 13 1 7 1 5 6 8 5 1 9 8 15 5 9 6 15 9 12 14 Tactical Retreats 58 | . . . . 3 2 . 2 . 1 4 8 3 . 1 . . . . . 3 1 . 1 1 5 . 9 . 5 2 5 2 Traps | -11 -10 -10 -9 -9 -9 -8 -8 -8 -8 -8 -7 -7 -7 -7 -7 -7 -6 -6 -5 -5 -5 -5 -5 -4 -4 -3 -3 -2 -2 -2 -1 -1 ------- Run | Scr Mat Min Mat Min Exi Min Mat Gar Mat Gar Fac Was Fac Gar Fac Gar Fac Gar Fac Ext Cet Arc Hub Fac Gar Res Tes Res Qua Sec Acc Com Traps Triggered 48 | . . . 1 . . . 2 9 . 5 1 . . 3 . . . 6 5 2 . . 3 . 5 . 2 1 1 . 2 . Indirectly . | . . . . . . . . . . . . . . . . . . . . . . . . . . . . . . . . . Trap Hack Attempts . | . . . . . . . . . . . . . . . . . . . . . . . . . . . . . . . . . Triggered . | . . . . . . . . . . . . . . . . . . . . . . . . . . . . . . . . . Disarmed . | . . . . . . . . . . . . . . . . . . . . . . . . . . . . . . . . . Reprogrammed . | . . . . . . . . . . . . . . . . . . . . . . . . . . . . . . . . . Reused . | . . . . . . . . . . . . . . . . . . . . . . . . . . . . . . . . . Traps Extracted . | . . . . . . . . . . . . . . . . . . . . . . . . . . . . . . . . . Installed . | . . . . . . . . . . . . . . . . . . . . . . . . . . . . . . . . . Triggered 2 | . . . . . . . . . . . . . . . . . . . . . . . . . 2 . . . . . . . Machines | -11 -10 -10 -9 -9 -9 -8 -8 -8 -8 -8 -7 -7 -7 -7 -7 -7 -6 -6 -5 -5 -5 -5 -5 -4 -4 -3 -3 -2 -2 -2 -1 -1 ---------- Run | Scr Mat Min Mat Min Exi Min Mat Gar Mat Gar Fac Was Fac Gar Fac Gar Fac Gar Fac Ext Cet Arc Hub Fac Gar Res Tes Res Qua Sec Acc Com Machines Disabled 88 | . . . 2 2 8 . . 1 1 3 1 . . 1 . 1 . 5 2 5 1 3 35 6 2 2 3 . 4 . . . Max in Single Turn 7 | . . . 1 1 2 . . 1 1 1 1 . . 1 . 1 . 1 1 1 . 1 7 2 1 1 1 . 1 . . . Garrison Access 3 | . . . . . . . . . . . . . . . . . . . . . . . 1 . . 1 1 . . . . . Garrison Relay 12 | . . . . . . . . 1 . 2 . . . 1 . 1 . 5 . . . . . . 2 . . . . . . . Network Hub 4 | . . . . . . . . . . . . . . . . . . . . . . . 4 . . . . . . . . . Machines Sabotaged . | . . . . . . . . . . . . . . . . . . . . . . . . . . . . . . . . . Garrisons Compromised . | . . . . . . . . . . . . . . . . . . . . . . . . . . . . . . . . . Overloaded Fab Kills . | . . . . . . . . . . . . . . . . . . . . . . . . . . . . . . . . . Fab Network Shutdowns 1 | . . . . . . . . . . . . . . . . . . . . . . . . . . . 1 . . . . . Hacking | -11 -10 -10 -9 -9 -9 -8 -8 -8 -8 -8 -7 -7 -7 -7 -7 -7 -6 -6 -5 -5 -5 -5 -5 -4 -4 -3 -3 -2 -2 -2 -1 -1 --------- Run | Scr Mat Min Mat Min Exi Min Mat Gar Mat Gar Fac Was Fac Gar Fac Gar Fac Gar Fac Ext Cet Arc Hub Fac Gar Res Tes Res Qua Sec Acc Com Machines Accessed 66 | . . . 2 1 1 . 4 . 1 . 2 . 3 . 3 . 8 . 4 5 . . 10 2 . 2 7 2 2 2 5 . Terminals 44 | . . . 2 1 . . 3 . . . . . . . 1 . 5 . 1 5 . . 9 1 . 1 4 2 2 2 5 . Fabricators 9 | . . . . . . . . . . . 1 . 2 . 1 . 1 . 2 . . . . . . . 2 . . . . . Repair Stations 1 | . . . . . . . . . . . . . . . . . 1 . . . . . . . . . . . . . . . Recycling Units . | . . . . . . . . . . . . . . . . . . . . . . . . . . . . . . . . . Scanalyzers 2 | . . . . . . . . . . . 1 . . . . . . . 1 . . . . . . . . . . . . . Garrison Access 9 | . . . . . . . 1 . 1 . . . 1 . 1 . 1 . . . . . 1 1 . 1 1 . . . . . Total Hacks 156 | . . . 4 5 1 . 7 . 1 . 7 . 7 . 6 . 17 . 14 6 . . 18 5 . 3 25 6 2 11 11 . Successful 73 | . . . . 1 1 . 4 . 1 . 3 . 4 . 5 . 11 . 7 5 . . 8 1 . 1 8 2 2 6 3 . Failed 82 | . . . 4 3 . . 3 . . . 4 . 3 . 1 . 6 . 7 1 . . 10 4 . 2 17 4 . 5 8 . Catastrophic 18 | . . . . 1 . . 2 . . . 1 . . . . . 1 . . . . . 4 1 . 1 2 . . 1 4 . Database Lockouts 1 | . . . . 1 . . . . . . . . . . . . . . . . . . . . . . . . . . . . Manual 79 | . . . 4 6 1 . 2 . . . . . . . 2 . 10 . 7 . 1 . 11 4 . 2 12 . 1 11 5 . Terminals 111 | . . . 4 5 . . 6 . . . . . . . 2 . 11 . 5 6 . . 17 4 . 2 19 6 2 11 11 . Fabricators 27 | . . . . . . . . . . . 3 . 6 . 3 . 3 . 7 . . . . . . . 5 . . . . . Repair Stations 2 | . . . . . . . . . . . . . . . . . 2 . . . . . . . . . . . . . . . Recycling Units . | . . . . . . . . . . . . . . . . . . . . . . . . . . . . . . . . . Scanalyzers 6 | . . . . . . . . . . . 4 . . . . . . . 2 . . . . . . . . . . . . . Garrison Access 9 | . . . . . . . 1 . 1 . . . 1 . 1 . 1 . . . . . 1 1 . 1 1 . . . . . Terminal Hacks 31 | . . . . 1 1 . 3 . . . . . . . 1 . 2 . 2 5 . . 3 . . . 3 2 2 3 3 . Record 2 | . . . . . 1 . . . . . . . . . . . . . . . . . . . . . . . 1 . . . Robot Analysis 3 | . . . . 1 . . 2 . . . . . . . . . . . . . . . . . . . . . . . . . Open Door 9 | . . . . . . . . . . . . . . . . . . . . 4 . . . . . . . 1 1 . 3 . Branch Access Points 4 | . . . . . . . 1 . . . . . . . . . 1 . 1 . . . . . . . . 1 . . . . Terminal Index 5 | . . . . . . . . . . . . . . . . . 1 . 1 . . . 1 . . . 1 . . 1 . . Alert Level 1 | . . . . . . . . . . . . . . . . . . . . . . . 1 . . . . . . . . . Unreport Threat 6 | . . . . . . . . . . . . . . . 1 . . . . . . . 1 . . . 2 . . 2 . . Maintenance Status 1 | . . . . . . . . . . . . . . . . . . . . 1 . . . . . . . . . . . . Fabricator Hacks 12 | . . . . . . . . . . . 1 . 3 . 3 . 1 . 2 . . . . . . . 2 . . . . . Load Schematic 7 | . . . . . . . . . . . 1 . 2 . 1 . 1 . 1 . . . . . . . 1 . . . . . Build 5 | . . . . . . . . . . . . . 1 . 2 . . . 1 . . . . . . . 1 . . . . . Repair Station Hacks 2 | . . . . . . . . . . . . . . . . . 2 . . . . . . . . . . . . . . . Scan Component 1 | . . . . . . . . . . . . . . . . . 1 . . . . . . . . . . . . . . . Repair 1 | . . . . . . . . . . . . . . . . . 1 . . . . . . . . . . . . . . . Recycling Unit Hacks . | . . . . . . . . . . . . . . . . . . . . . . . . . . . . . . . . . Scanalyzer 3 | . . . . . . . . . . . 2 . . . . . . . 1 . . . . . . . . . . . . . Insert Component 2 | . . . . . . . . . . . 1 . . . . . . . 1 . . . . . . . . . . . . . Analyze 1 | . . . . . . . . . . . 1 . . . . . . . . . . . . . . . . . . . . . Garrison Access Hacks 9 | . . . . . . . 1 . 1 . . . 1 . 1 . 1 . . . . . 1 1 . 1 1 . . . . . Unlock Access 6 | . . . . . . . 1 . 1 . . . 1 . 1 . 1 . . . . . . 1 . . . . . . . . Seal Access 3 | . . . . . . . . . . . . . . . . . . . . . . . 1 . . 1 1 . . . . . Unauthorized Hacks 16 | . . . . . . . . . . . . . . . . . 5 . 2 . . . 4 . . . 2 . . 3 . . Terminals 15 | . . . . . . . . . . . . . . . . . 5 . 1 . . . 4 . . . 2 . . 3 . . Track 5 | . . . . . . . . . . . . . . . . . 2 . . . . . 1 . . . 1 . . 1 . . Assimilate 1 | . . . . . . . . . . . . . . . . . . . . . . . . . . . . . . 1 . . Botnet 4 | . . . . . . . . . . . . . . . . . 1 . . . . . 2 . . . 1 . . . . . Operators 5 | . . . . . . . . . . . . . . . . . 2 . 1 . . . 1 . . . . . . 1 . . Fabricators 1 | . . . . . . . . . . . . . . . . . . . 1 . . . . . . . . . . . . . Haulers 1 | . . . . . . . . . . . . . . . . . . . 1 . . . . . . . . . . . . . Repair Stations . | . . . . . . . . . . . . . . . . . . . . . . . . . . . . . . . . . Recycling Units . | . . . . . . . . . . . . . . . . . . . . . . . . . . . . . . . . . Scanalyzers . | . . . . . . . . . . . . . . . . . . . . . . . . . . . . . . . . . Garrison Access . | . . . . . . . . . . . . . . . . . . . . . . . . . . . . . . . . . Data Cores Recovered 1 | . . . . . . . . . . . . . . . 1 . . . . . . . . . . . . . . . . . Used . | . . . . . . . . . . . . . . . . . . . . . . . . . . . . . . . . . Hacking Detections 45 | . . . 2 1 . . 3 . . . 2 . 1 . 2 . 7 . 3 2 . . 9 1 . 1 5 1 . 2 3 . Full Trace Events 4 | . . . . . . . . . . . 1 . . . . . . . . . . . . 1 . . 1 . . . 1 . Feedback Events . | . . . . . . . . . . . . . . . . . . . . . . . . . . . . . . . . . Feedback Blocked . | . . . . . . . . . . . . . . . . . . . . . . . . . . . . . . . . . Robot Schematics Acquired . | . . . . . . . . . . . . . . . . . . . . . . . . . . . . . . . . . Robots Built . | . . . . . . . . . . . . . . . . . . . . . . . . . . . . . . . . . Matter . | . . . . . . . . . . . . . . . . . . . . . . . . . . . . . . . . . Time . | . . . . . . . . . . . . . . . . . . . . . . . . . . . . . . . . . Total Robot Build Rating . | . . . . . . . . . . . . . . . . . . . . . . . . . . . . . . . . . Part Schematics Acquired 1 | . . . . . . . . . . . 1 . . . . . . . . . . . . . . . . . . . . . Parts Built 5 | . . . . . . . . . . . . . 1 . 2 . . . 1 . . . . . . . 1 . . . . . Matter 510 | . . . . . . . . . . . . . 102 . 204 . . . 102 . . . . . . . 102 . . . . . Time 203 | . . . . . . . . . . . . . 51 . 102 . . . 25 . . . . . . . 25 . . . . . Total Part Build Rating 5 | . . . . . . . . . . . . . 1 . 2 . . . 1 . . . . . . . 1 . . . . . Parts Repaired 1 | . . . . . . . . . . . . . . . . . 1 . . . . . . . . . . . . . . . Time 22 | . . . . . . . . . . . . . . . . . 22 . . . . . . . . . . . . . . . Parts Recycled . | . . . . . . . . . . . . . . . . . . . . . . . . . . . . . . . . . Recycled Matter . | . . . . . . . . . . . . . . . . . . . . . . . . . . . . . . . . . Retrieved Matter . | . . . . . . . . . . . . . . . . . . . . . . . . . . . . . . . . . Retrieved Components . | . . . . . . . . . . . . . . . . . . . . . . . . . . . . . . . . . Parts Scanalyzed 2 | . . . . . . . . . . . 1 . . . . . . . 1 . . . . . . . . . . . . . Part Schematics Acquired 1 | . . . . . . . . . . . 1 . . . . . . . . . . . . . . . . . . . . . Parts Damaged . | . . . . . . . . . . . . . . . . . . . . . . . . . . . . . . . . . Bothacking | -11 -10 -10 -9 -9 -9 -8 -8 -8 -8 -8 -7 -7 -7 -7 -7 -7 -6 -6 -5 -5 -5 -5 -5 -4 -4 -3 -3 -2 -2 -2 -1 -1 ------------ Run | Scr Mat Min Mat Min Exi Min Mat Gar Mat Gar Fac Was Fac Gar Fac Gar Fac Gar Fac Ext Cet Arc Hub Fac Gar Res Tes Res Qua Sec Acc Com Used RIF Installer 5 | . . . . . . . . 1 . 1 . . . 1 . . . 1 . . . . . . 1 . . . . . . . Coupler Efficiency 1 | . . . . . . . . . . . . . . . . . . . . . . . . . 1 . . . . . . . Robot Detection 1 | . . . . . . . . . . . . . . . . . . 1 . . . . . . . . . . . . . . Alert ID Control 1 | . . . . . . . . . . . . . . 1 . . . . . . . . . . . . . . . . . . Structural Interface 1 | . . . . . . . . . . 1 . . . . . . . . . . . . . . . . . . . . . . Robots Hacked 18 | . . . . . . . . . . . 1 . . . . . . 7 5 . . . 2 1 . . 2 . . . . . Non-combat 9 | . . . . . . . . . . . . . . . . . . . 4 . . . 2 1 . . 2 . . . . . Combat 9 | . . . . . . . . . . . 1 . . . . . . 7 1 . . . . . . . . . . . . . Robot Hacks Applied 42 | . . . . . . . . . . . 1 . . . . . . 9 12 . . . 7 7 . . 6 . . . . . parse_system 1 | . . . . . . . . . . . . . . . . . . 1 . . . . . . . . . . . . . . no_distress 1 | . . . . . . . . . . . . . . . . . . . . . . . 1 . . . . . . . . . check_alert 1 | . . . . . . . . . . . . . . . . . . . 1 . . . . . . . . . . . . . purge_threat 21 | . . . . . . . . . . . . . . . . . . . 5 . . . 6 6 . . 4 . . . . . block_reporting 2 | . . . . . . . . . . . . . . . . . . . 1 . . . . . . . 1 . . . . . summon_haulers 1 | . . . . . . . . . . . . . . . . . . . 1 . . . . . . . . . . . . . map_route 1 | . . . . . . . . . . . . . . . . . . . 1 . . . . . . . . . . . . . mark_security 1 | . . . . . . . . . . . . . . . . . . . 1 . . . . . . . . . . . . . spike_heat 1 | . . . . . . . . . . . . . . . . . . 1 . . . . . . . . . . . . . . disable_weapons 1 | . . . . . . . . . . . . . . . . . . 1 . . . . . . . . . . . . . . overwrite_iff 1 | . . . . . . . . . . . . . . . . . . 1 . . . . . . . . . . . . . . formatsys_low 2 | . . . . . . . . . . . . . . . . . . . 1 . . . . 1 . . . . . . . . formatsys_high 8 | . . . . . . . . . . . 1 . . . . . . 5 1 . . . . . . . 1 . . . . . Relay Couplers Released 51 | . . . . . . . . 5 . 9 . . . 5 . 3 . 18 . . . . 3 . 8 . . . . . . . Machine Destruction 48 | . . . . . . . . 5 . 9 . . . 5 . 3 . 18 . . . . . . 8 . . . . . . . Programmers 3 | . . . . . . . . . . . . . . . . . . . . . . . 3 . . . . . . . . . Attached 18 | . . . . . . . . . . . 1 . . . . . . 5 5 . . . 2 2 3 . . . . . . . Robots Rewired 13 | . . . . . . . . . . . . . . . . . . 6 . 7 . . . . . . . . . . . . Allies Hacked 1 | . . . . . . . . . . . . . . . . . . . 1 . . . . . . . . . . . . . Hacks Repelled . | . . . . . . . . . . . . . . . . . . . . . . . . . . . . . . . . . Allies | -11 -10 -10 -9 -9 -9 -8 -8 -8 -8 -8 -7 -7 -7 -7 -7 -7 -6 -6 -5 -5 -5 -5 -5 -4 -4 -3 -3 -2 -2 -2 -1 -1 -------- Run | Scr Mat Min Mat Min Exi Min Mat Gar Mat Gar Fac Was Fac Gar Fac Gar Fac Gar Fac Ext Cet Arc Hub Fac Gar Res Tes Res Qua Sec Acc Com Total Allies 75 | . . 2 . . . . . . . . 1 1 . . . . . 12 2 14 5 . . 1 . . 1 . 6 9 . 21 Largest Group 10 | . . 2 2 . . . . . . . 1 1 . . . . . 7 1 8 8 8 5 1 . . 1 . 5 8 . 10 Highest-Rated Group 663 | . . 41 41 . . . . . . . 21 31 . . . . . 185 49 340 663 663 464 26 . . 44 . 70 110 . 133 Highest-Rated Ally 156 | . . 31 31 . . . . . . . 21 31 . . . . . 41 49 156 156 140 94 26 . . 44 . 15 15 . 15 Total Orders 1 | . . . . . . . . . . . . . . . . . . . . 1 . . . . . . . . . . . . STAY 1 | . . . . . . . . . . . . . . . . . . . . 1 . . . . . . . . . . . . Ally Attacks 611 | . . . 22 . . . . . . . 26 1 . . . . . 118 5 82 68 13 38 . . . . . 19 50 . 169 Total Damage 13501 | . . . 354 . . . . . . . 679 22 . . . . . 2572 198 1419 1963 456 1383 . . . . . 504 955 . 2996 Kills 90 | . . . 5 . . . . . . . 7 . . . . . . 20 3 11 13 3 8 . . . . . 1 2 . 17 Allies Corrupted 2 | . . . . . . . . . . . . . . . . . . . . . . . . . . . . . . 1 . 1 Allies Melted . | . . . . . . . . . . . . . . . . . . . . . . . . . . . . . . . . . Turrets Deployed 1 | . . . . . 1 . . . . . . . . . . . . . . . . . . . . . . . . . . . Intel | -11 -10 -10 -9 -9 -9 -8 -8 -8 -8 -8 -7 -7 -7 -7 -7 -7 -6 -6 -5 -5 -5 -5 -5 -4 -4 -3 -3 -2 -2 -2 -1 -1 ------- Run | Scr Mat Min Mat Min Exi Min Mat Gar Mat Gar Fac Was Fac Gar Fac Gar Fac Gar Fac Ext Cet Arc Hub Fac Gar Res Tes Res Qua Sec Acc Com Robot Analysis Total 3 | . . . . 1 . . 2 . . . . . . . . . . . . . . . . . . . . . . . . . Derelict Logs Recovered 1 | . . 1 . . . . . . . . . . . . . . . . . . . . . . . . . . . . . . Drone Launches . | . . . . . . . . . . . . . . . . . . . . . . . . . . . . . . . . . Drone Recoveries . | . . . . . . . . . . . . . . . . . . . . . . . . . . . . . . . . . Exploration | -11 -10 -10 -9 -9 -9 -8 -8 -8 -8 -8 -7 -7 -7 -7 -7 -7 -6 -6 -5 -5 -5 -5 -5 -4 -4 -3 -3 -2 -2 -2 -1 -1 ------------- Run | Scr Mat Min Mat Min Exi Min Mat Gar Mat Gar Fac Was Fac Gar Fac Gar Fac Gar Fac Ext Cet Arc Hub Fac Gar Res Tes Res Qua Sec Acc Com Turns Passed 29092 | . 356 1267 520 537 1606 714 1164 929 175 1037 1267 577 355 531 329 553 1005 1413 1232 1498 416 91 2826 911 914 476 2362 581 846 188 1963 453 Spaces Moved 12985 | 1 155 653 229 199 729 280 487 438 78 501 524 241 139 207 137 197 445 590 497 609 164 40 1045 354 445 256 1091 265 552 319 845 273 Core 676 | . . . . . . . . . . . . . . . . . . . . . . . . . . . . . 254 309 . 113 Treads 11943 | . 79 653 229 199 729 280 487 438 78 501 524 241 139 207 137 197 445 590 497 609 164 40 1045 354 445 256 1091 265 179 10 675 160 Legs 144 | 1 76 . . . . . . . . . . . . . . . . . . . . . . . . . . . 13 . 54 . Wheels 116 | . . . . . . . . . . . . . . . . . . . . . . . . . . . . . . . 116 . Hover 106 | . . . . . . . . . . . . . . . . . . . . . . . . . . . . . 106 . . . Flight . | . . . . . . . . . . . . . . . . . . . . . . . . . . . . . . . . . Fastest Speed 50 | 120 120 160 170 190 190 210 186 186 186 180 180 180 200 180 180 200 200 180 200 180 200 200 185 185 160 160 152 177 50 50 110 50 Average Speed 178 | 120 144 178 184 190 196 220 189 186 186 181 181 188 200 199 199 200 213 199 200 199 200 200 198 192 173 160 162 184 126 53 151 118 Slowest Speed 320 | 120 160 180 190 190 210 270 190 186 186 186 200 200 200 200 200 200 220 200 200 200 200 200 205 205 185 160 180 185 320 170 220 200 Overloaded Moves . | . . . . . . . . . . . . . . . . . . . . . . . . . . . . . . . . . Propulsion Burnouts . | . . . . . . . . . . . . . . . . . . . . . . . . . . . . . . . . . Robots Hopped 1 | . . . 1 . . . . . . . . . . . . . . . . . . . . . . . . . . . . . Cave-ins Triggered . | . . . . . . . . . . . . . . . . . . . . . . . . . . . . . . . . . Teleports 1 | . . . . . . . . . . . . . . . . . . . . . . . . . . . . . . . 1 . Exploration Rate (%) 44 | 1 29 97 34 37 88 56 51 70 11 77 21 88 4 41 3 45 17 84 19 76 56 62 86 14 66 11 93 10 69 28 21 15 Regions Visited 32 Branch Regions 12 Pre-discovered Areas 1 | . . . . . 1 . . . . . . . . . . . . . . . . . . . . . . . . . . . Known Exits Taken 8 | . . . . . . . 1 . 1 . . . 1 . 1 . 1 . 1 . . . . 1 . . . 1 . . . . Unknown Exits Taken 16 | 1 1 1 1 1 1 1 . . . . . . . . . . . . . 1 1 1 1 . . 1 1 . 1 1 1 . Scrap Searched 2 | . . 1 . . . 1 . . . . . . . . . . . . . . . . . . . . . . . . . . Spaces Dug 64 | . . . . 44 . . . . . 4 . . . . . . . . . . . . 2 8 . . 2 . 4 . . . Terrain Destroyed 1003 | . . 21 . 85 48 7 16 2 2 5 11 . . 14 . . . . 7 7 1 6 656 56 6 1 11 12 29 . . . Melee . | . . . . . . . . . . . . . . . . . . . . . . . . . . . . . . . . . Projectile 193 | . . . . . 6 7 14 . 2 . 5 . . . . . . . 1 3 1 6 108 21 2 1 7 1 8 . . . AOE 810 | . . 21 . 85 42 . 2 2 . 5 6 . . 14 . . . . 6 4 . . 548 35 4 . 4 11 21 . . . Terrain Rammed . | . . . . . . . . . . . . . . . . . . . . . . . . . . . . . . . . . Walls Destroyed . | . . . . . . . . . . . . . . . . . . . . . . . . . . . . . . . . . Machines Disabled . | . . . . . . . . . . . . . . . . . . . . . . . . . . . . . . . . . Actions | -11 -10 -10 -9 -9 -9 -8 -8 -8 -8 -8 -7 -7 -7 -7 -7 -7 -6 -6 -5 -5 -5 -5 -5 -4 -4 -3 -3 -2 -2 -2 -1 -1 --------- Run | Scr Mat Min Mat Min Exi Min Mat Gar Mat Gar Fac Was Fac Gar Fac Gar Fac Gar Fac Ext Cet Arc Hub Fac Gar Res Tes Res Qua Sec Acc Com Total 16952 | . 226 707 311 309 854 327 617 494 89 573 669 321 194 274 191 276 480 771 642 769 244 44 1530 550 588 321 1584 357 708 333 1245 354 Wait 1078 | . 19 10 3 73 31 13 12 3 1 2 12 3 36 11 42 21 16 56 48 65 22 1 161 34 40 6 182 13 9 5 108 20 Move 12956 | . 154 652 227 198 728 279 487 437 78 500 524 240 138 206 137 196 444 588 496 608 163 39 1044 354 444 255 1090 264 551 318 844 273 Hop 1 | . . . 1 . . . . . . . . . . . . . . . . . . . . . . . . . . . . . Pick Up 247 | . 9 8 13 . 14 . 18 2 . 10 8 14 . 5 3 4 2 20 6 2 16 . 41 15 7 1 14 3 11 . 1 . Fast Attach 222 | . 1 2 12 . 2 2 4 . 1 . 4 1 5 6 1 4 3 4 3 3 7 . 8 2 11 2 19 7 10 5 74 19 Attach 171 | . 3 3 2 . 4 1 11 2 . 6 8 3 . 3 3 . 2 6 8 3 6 . 17 16 5 1 28 7 18 . 4 1 Detach 59 | . . . 1 . . . 2 . . . . . . . . . 1 1 1 . 4 . 3 5 1 . 24 6 7 . 3 . Swap 99 | . 1 1 8 1 1 . 4 2 . 3 17 3 1 1 . . . 10 8 6 2 . 17 4 1 . 5 1 1 . 1 . Drop 267 | . 4 1 31 . 9 1 11 . . 6 7 12 3 1 4 . 2 22 6 2 16 . 19 12 9 2 10 5 26 3 37 6 Fire 1725 | . 34 22 8 21 65 29 65 30 9 37 87 45 10 35 1 51 10 56 61 76 7 4 214 106 60 51 209 51 75 . 167 29 Melee 1 | . . . 1 . . . . . . . . . . . . . . . . . . . . . . . . . . . . . Ram 1 | . . . . . . . . . . . . . 1 . . . . . . . . . . . . . . . . . . . Kick 1 | . 1 . . . . . . . . . . . . . . . . . . . . . . . . . . . . . . . Crush 66 | . . 8 4 16 . 2 3 . . . 2 . . . . . . . 2 2 1 . 6 2 . 3 3 . . 2 4 6 Escape Stasis 57 | . . . . . . . . 18 . 9 . . . 6 . . . 8 2 2 . . . . 10 . . . . . 2 . Rewire 1 | . . . . . . . . . . . . . . . . . . . 1 . . . . . . . . . . . . . Trap . | . . . . . . . . . . . . . . . . . . . . . . . . . . . . . . . . . Miscellaneous . | . . . . . . . . . . . . . . . . . . . . . . . . . . . . . . . . . Route ------- -11/Scrapyard -10/Materials -10/Mines (discovered 2 exits: *Mat x2) -9/Materials -9/Mines -9/Exiles -8/Mines -8/Materials (discovered 2 exits: *Fac / Gar) -8/Garrison (discovered 3 exits: *Mat x3) -8/Materials -8/Garrison (discovered 3 exits: *Fac x3) -7/Factory -7/Waste -7/Factory -7/Garrison -7/Factory -7/Garrison -6/Factory (discovered 3 exits: Low x2 / Gar) -6/Garrison (discovered 3 exits: *Fac x3) -5/Factory (discovered 4 exits: Upp x2 / *Ext x2) -5/Extension (discovered 2 exits: *Fac / *Cet) -5/Cetus (discovered 2 exits: *Fac / [*Arc]) -5/Archives -5/Hub_04(d) (discovered 4 exits: *Fac x4) -4/Factory -4/Garrison (discovered 2 exits: *Res x2) -3/Research (discovered 2 exits: [*Arm] / *Tes) -3/Testing -2/Research (discovered 2 exits: *Qua x2) -2/Quarantine (discovered 2 exits: *Acc / *Sec) -2/Section 7 -1/Access -1/Command History --------- Turn | Location | Event 1 | -11/Scrapyard | Discovered new exit (range 0) 1 | -11/Scrapyard | Entered Materials 204 | -10/Materials | Discovered new exit (range 13) 304 | -10/Materials | Build established: Mutant 357 | -10/Materials | Entered Mines 999 | -10/Mines | Learned 2 Materials zone layouts 1001 | -10/Mines | Discovered new exit (range 4) 1372 | -10/Mines | Discovered new exit (range 7) 1624 | -10/Mines | Entered Materials 1624 | -9/Materials | Accompanied by 2 allies 1624 | -9/Materials | Evolved 2 slots: Utility x2 1629 | -9/Materials | Led the pair of lost Derelicts to an unsafe place 1952 | -9/Materials | Met 8R-AWN 1964 | -9/Materials | Attacked by 8R-AWN 1983 | -9/Materials | Destroyed 8R-AWN 1992 | -9/Materials | Found Prototype Ballistic Gun 1992 | -9/Materials | Identified 8R-AWN's Boregun 1997 | -9/Materials | Found 8R-AWN's Boregun 2002 | -9/Materials | Found Prototype Processor 2030 | -9/Materials | Discovered new exit (range 15) 2144 | -9/Materials | Entered Mines 2250 | -9/Mines | Central database locked down 2407 | -9/Mines | Assembled infested the area 2671 | -9/Mines | Discovered new exit (range 5) 2681 | -9/Mines | Entered Exiles 2681 | -9/Exiles | Attacked by the Exiles 2740 | -9/Exiles | Destroyed 7 combat bots 3405 | -9/Exiles | Destroyed EX-HEX 3459 | -9/Exiles | Destroyed EX-DEC 3498 | -9/Exiles | Destroyed EX-BIN 3873 | -9/Exiles | Learned location of Zion (-7) 4045 | -9/Exiles | Build established: Hauler-Mutant 4080 | -9/Exiles | DAS Turret deployed 4270 | -9/Exiles | Discovered new exit (range 10) 4287 | -9/Exiles | Entered Mines 4981 | -8/Mines | Discovered new exit (range 8) 5001 | -8/Mines | Entered Materials 5001 | -8/Materials | Evolved 2 slots: Propulsion x1, Utility x1 5003 | -8/Materials | Identified Exp. Targeting Computer 5875 | -8/Materials | Discovered new exit (range 16) 6165 | -8/Materials | Identified exit to Garrison 6165 | -8/Materials | Entered Garrison 6190 | -8/Garrison | Triggered checkpoint 6356 | -8/Garrison | Triggered checkpoint 6485 | -8/Garrison | Discovered new exit (range 10) 6600 | -8/Garrison | Discovered new exit (range 11) 6759 | -8/Garrison | Discovered new exit (range 10) 6785 | -8/Garrison | Installed Relay Interface Framework 6832 | -8/Garrison | Triggered checkpoint 6879 | -8/Garrison | Garrison Relay disabled 7094 | -8/Garrison | Entered Materials 7269 | -8/Materials | Identified exit to Garrison 7269 | -8/Materials | Entered Garrison 7326 | -8/Garrison | Triggered checkpoint 7361 | -8/Garrison | Garrison Relay disabled 7452 | -8/Garrison | Triggered checkpoint 7602 | -8/Garrison | Discovered new exit (range 10) 7650 | -8/Garrison | Triggered checkpoint 7686 | -8/Garrison | Garrison Relay disabled 7867 | -8/Garrison | Discovered new exit (range 14) 7984 | -8/Garrison | Triggered checkpoint 8140 | -8/Garrison | Discovered new exit (range 10) 8276 | -8/Garrison | Expanded RIF knowledge: Structural Interface 8306 | -8/Garrison | Entered Factory 8306 | -7/Factory | Evolved 2 slots: Utility x2 8528 | -7/Factory | Discovered new exit (range 12) 8770 | -7/Factory | Garrison activated, responded to threat 9106 | -7/Factory | First assault squad dispatched 9118 | -7/Factory | Build established: Bothacker-Mutant 9573 | -7/Factory | Sucked down chute 9573 | -7/Factory | Entered Waste 9574 | -7/Waste | Met a frightened Derelict 9588 | -7/Waste | EMP discharged 9591 | -7/Waste | Spotted C-40 Crusher 9599 | -7/Waste | Destroyed C-40 Crusher 9602 | -7/Waste | Spotted C-40 Crusher 9608 | -7/Waste | Destroyed C-40 Crusher 9618 | -7/Waste | Found Damper Plating 9644 | -7/Waste | Found Damper Plating 9649 | -7/Waste | Spotted C-40 Crusher 9663 | -7/Waste | Destroyed C-40 Crusher 9670 | -7/Waste | Destroyed C-40 Crusher 9688 | -7/Waste | EMP discharged 9688 | -7/Waste | System corruption reached 10% 9719 | -7/Waste | Spotted C-40 Crusher 9743 | -7/Waste | Spotted C-40 Crusher 9788 | -7/Waste | EMP discharged 9835 | -7/Waste | Discovered new exit (range 16) 9888 | -7/Waste | EMP discharged 9922 | -7/Waste | Destroyed C-40 Crusher 9988 | -7/Waste | EMP discharged 9988 | -7/Waste | System corruption reached 30% 10042 | -7/Waste | Destroyed C-40 Crusher 10048 | -7/Waste | Found Damper Plating 10053 | -7/Waste | Found Damper Plating 10088 | -7/Waste | EMP discharged 10150 | -7/Waste | Entered Factory 10213 | -7/Factory | Build established: Hauler-Mutant 10414 | -7/Factory | Identified exit to Garrison 10445 | -7/Factory | Fabricated Humpback (x1) 10505 | -7/Factory | Entered Garrison 10562 | -7/Garrison | Triggered checkpoint 10688 | -7/Garrison | Garrison Relay disabled 10810 | -7/Garrison | Triggered checkpoint 10816 | -7/Garrison | Triggered checkpoint 10821 | -7/Garrison | Core integrity fell below 50% 10875 | -7/Garrison | Lost 6 parts (1p2n1u2w) 10878 | -7/Garrison | Destroyed 15 combat bots 10982 | -7/Garrison | Discovered new exit (range 8) 11011 | -7/Garrison | Build established: Bothacker-Mutant 11012 | -7/Garrison | Expanded RIF knowledge: Alert ID Control 11036 | -7/Garrison | Entered Factory 11191 | -7/Factory | Fabricated Humpback? 11303 | -7/Factory | Fabricated Humpback (x1) 11365 | -7/Factory | Identified exit to Garrison 11365 | -7/Factory | Entered Garrison 11499 | -7/Garrison | Destroyed 10 combat bots 11592 | -7/Garrison | Triggered checkpoint 11613 | -7/Garrison | Garrison Relay disabled 11704 | -7/Garrison | Triggered checkpoint 11778 | -7/Garrison | Discovered new exit (range 10) 11918 | -7/Garrison | Entered Factory 11918 | -6/Factory | Evolved 2 slots: Utility x2 11985 | -6/Factory | Repaired Flak Gun 12357 | -6/Factory | Identified exit to Lower Caves 12912 | -6/Factory | Identified exit to Garrison 12923 | -6/Factory | Entered Garrison 13028 | -6/Garrison | Triggered checkpoint 13056 | -6/Garrison | Triggered checkpoint 13131 | -6/Garrison | Garrison Relay disabled 13163 | -6/Garrison | Garrison Relay disabled 13230 | -6/Garrison | Triggered checkpoint 13246 | -6/Garrison | Triggered checkpoint 13246 | -6/Garrison | Triggered checkpoint 13306 | -6/Garrison | Triggered checkpoint 13368 | -6/Garrison | Garrison Relay disabled 13404 | -6/Garrison | Triggered checkpoint 13421 | -6/Garrison | Garrison Relay disabled 13502 | -6/Garrison | Discovered new exit (range 2) 13574 | -6/Garrison | Spotted B-75 Beast 13574 | -6/Garrison | Spotted B-75 Beast 13608 | -6/Garrison | Destroyed B-75 Beast 13626 | -6/Garrison | Destroyed B-75 Beast 13678 | -6/Garrison | Found Quantum Capacitor 13686 | -6/Garrison | Found Quantum Capacitor 13691 | -6/Garrison | Found Quantum Capacitor 13875 | -6/Garrison | Discovered new exit (range 14) 14186 | -6/Garrison | Triggered checkpoint 14211 | -6/Garrison | Garrison Relay disabled 14290 | -6/Garrison | Discovered new exit (range 13) 14326 | -6/Garrison | Expanded RIF knowledge: Robot Detection 14336 | -6/Garrison | Entered Factory 14336 | -5/Factory | Accompanied by 1 ally 14336 | -5/Factory | Evolved 2 slots: Utility x2 14518 | -5/Factory | Fabricated Humpback (x1) 14630 | -5/Factory | Build established: Botlord-Mutant 14723 | -5/Factory | Destroyed 7 combat bots 14748 | -5/Factory | Identified exit to Upper Caves 14748 | -5/Factory | Identified exit to Extension 15273 | -5/Factory | Destroyed 8 combat bots 15563 | -5/Factory | Build established: Bothacker-Mutant 15568 | -5/Factory | Entered Extension 15568 | -5/Extension | Accompanied by 1 ally 15626 | -5/Extension | Rescued a captive Derelict 15628 | -5/Extension | Rescued a captive Derelict 15665 | -5/Extension | Rescued a captive Derelict 15665 | -5/Extension | Rescued a captive Derelict 16043 | -5/Extension | Spotted B-75 Beast 16060 | -5/Extension | Allies destroyed B-75 Beast 16134 | -5/Extension | Destroyed B-75 Beast 16168 | -5/Extension | Disrupted transfer network 16274 | -5/Extension | Destroyed 7 combat bots 16414 | -5/Extension | Rescued a captive Derelict 16417 | -5/Extension | Rescued a captive Derelict 16550 | -5/Extension | Rescued A7 16665 | -5/Extension | Disrupted transfer network 17027 | -5/Extension | Discovered new exit (range 16) 17029 | -5/Extension | Discovered new exit (range 15) 17066 | -5/Extension | Entered Cetus 17066 | -5/Cetus | Accompanied by 6 allies (A7) 17071 | -5/Cetus | Acquired a Cetus Manufacturing Module code from A7 17095 | -5/Cetus | Spotted Cetus Guard 17095 | -5/Cetus | Spotted Cetus Guard 17098 | -5/Cetus | Spotted Cetus Guard 17098 | -5/Cetus | Spotted Cetus Guard 17100 | -5/Cetus | Allies destroyed Cetus Guard 17111 | -5/Cetus | Allies destroyed Cetus Guard 17117 | -5/Cetus | Allies destroyed Cetus Guard 17119 | -5/Cetus | Allies destroyed Cetus Guard 17229 | -5/Cetus | Started Cetus Manufacturing Module 17254 | -5/Cetus | Manufactured an Enhanced Grunt 17263 | -5/Cetus | Discovered new exit (range 15) 17279 | -5/Cetus | Manufactured an Enhanced Grunt 17304 | -5/Cetus | Manufactured an Enhanced Grunt 17305 | -5/Cetus | Spotted Cetus Guard 17305 | -5/Cetus | Spotted Cetus Guard 17309 | -5/Cetus | Spotted Cetus Guard 17309 | -5/Cetus | Spotted Cetus Guard 17311 | -5/Cetus | Allies destroyed Cetus Guard 17315 | -5/Cetus | Allies destroyed Cetus Guard 17322 | -5/Cetus | Destroyed Cetus Guard 17323 | -5/Cetus | Allies destroyed Cetus Guard 17329 | -5/Cetus | Manufactured an Enhanced Grunt 17330 | -5/Cetus | Discovered new exit (range 15) 17340 | -5/Cetus | Met Revision 17 17354 | -5/Cetus | Manufactured an Enhanced Grunt 17482 | -5/Cetus | Entered Archives 17482 | -5/Archives | Accompanied by 8 allies (A7) 17538 | -5/Archives | Discovered new exit (range 16) 17573 | -5/Archives | Entered Hub_04(d) 17573 | -5/Hub_04(d) | Accompanied by 5 allies 17997 | -5/Hub_04(d) | Garrison activated, responded to threat 18273 | -5/Hub_04(d) | Discovered new exit (range 6) 18352 | -5/Hub_04(d) | Build established: Hauler-Mutant 18508 | -5/Hub_04(d) | Discovered new exit (range 9) 18719 | -5/Hub_04(d) | Discovered new exit (range 8) 18773 | -5/Hub_04(d) | First assault squad dispatched 18790 | -5/Hub_04(d) | Spotted B-75 Beast 18827 | -5/Hub_04(d) | Destroyed B-75 Beast 18875 | -5/Hub_04(d) | Destroyed 10 combat bots 18880 | -5/Hub_04(d) | Lost 6 parts (1p5u) 18904 | -5/Hub_04(d) | Network Hub disabled 19014 | -5/Hub_04(d) | Spotted Lightning 19015 | -5/Hub_04(d) | Spotted Lightning 19027 | -5/Hub_04(d) | Spotted Lightning 19039 | -5/Hub_04(d) | Destroyed Lightning 19078 | -5/Hub_04(d) | Destroyed Lightning 19122 | -5/Hub_04(d) | Found Prototype Energy Cannon 19123 | -5/Hub_04(d) | Destroyed Lightning 19136 | -5/Hub_04(d) | Found Prototype Energy Cannon 19141 | -5/Hub_04(d) | Found Prototype Device 19142 | -5/Hub_04(d) | Identified EM Dispersion Field 19147 | -5/Hub_04(d) | Found Exp. Targeting Computer 19165 | -5/Hub_04(d) | Found Prototype Device 19166 | -5/Hub_04(d) | Identified Exp. Phase Shifter 19179 | -5/Hub_04(d) | Found EM Dispersion Field 19195 | -5/Hub_04(d) | Found Exp. Targeting Computer 19251 | -5/Hub_04(d) | Spotted Lightning 19253 | -5/Hub_04(d) | Spotted Lightning 19255 | -5/Hub_04(d) | Spotted Lightning 19261 | -5/Hub_04(d) | Destroyed Lightning 19282 | -5/Hub_04(d) | Found Prototype Energy Cannon 19301 | -5/Hub_04(d) | Destroyed Lightning 19325 | -5/Hub_04(d) | Found EM Dispersion Field 19344 | -5/Hub_04(d) | Destroyed Lightning 19504 | -5/Hub_04(d) | Network Hub disabled 19645 | -5/Hub_04(d) | Discovered new exit (range 2) 19728 | -5/Hub_04(d) | Network Hub disabled 19733 | -5/Hub_04(d) | Spotted Lightning 19735 | -5/Hub_04(d) | Spotted Lightning 19736 | -5/Hub_04(d) | Spotted Lightning 19737 | -5/Hub_04(d) | Destroyed Lightning 19755 | -5/Hub_04(d) | Destroyed Lightning 19764 | -5/Hub_04(d) | Destroyed Lightning 19781 | -5/Hub_04(d) | Spotted Lightning 19781 | -5/Hub_04(d) | Spotted Lightning 19783 | -5/Hub_04(d) | Found Prototype Energy Cannon 19785 | -5/Hub_04(d) | Spotted Lightning 19791 | -5/Hub_04(d) | System corruption reached 10% 19825 | -5/Hub_04(d) | Destroyed Lightning 19848 | -5/Hub_04(d) | Destroyed Lightning 19866 | -5/Hub_04(d) | Destroyed Lightning 19899 | -5/Hub_04(d) | Found Prototype Energy Cannon 19901 | -5/Hub_04(d) | Identified EMDS (x5) 19914 | -5/Hub_04(d) | Found EMDS 19977 | -5/Hub_04(d) | Network Hub disabled 20207 | -5/Hub_04(d) | Build established: Scavenger-Mutant 20399 | -5/Hub_04(d) | Entered Factory 20399 | -4/Factory | Evolved 2 slots: Power x1, Utility x1 20767 | -4/Factory | Destroyed 9 combat bots 21149 | -4/Factory | First assault squad dispatched 21310 | -4/Factory | Identified exit to Garrison 21310 | -4/Factory | Entered Garrison 21390 | -4/Garrison | Spotted B-86 Titan 21390 | -4/Garrison | Triggered checkpoint 21450 | -4/Garrison | Destroyed B-86 Titan 21462 | -4/Garrison | Lost 5 parts (1p1n3u) 21466 | -4/Garrison | Found Hvy. Reflective Plating 21471 | -4/Garrison | Destroyed 11 combat bots 21637 | -4/Garrison | Discovered new exit (range 10) 21672 | -4/Garrison | Expanded RIF knowledge: Coupler Efficiency 21746 | -4/Garrison | Garrison Relay disabled 21891 | -4/Garrison | Discovered new exit (range 10) 21989 | -4/Garrison | Garrison Relay disabled 22224 | -4/Garrison | Entered Research 22224 | -3/Research | Evolved 2 slots: Propulsion x1, Utility x1 22424 | -3/Research | Revision forces began assault on 0b10 22475 | -3/Research | Discovered new exit (range 5) 22522 | -3/Research | Met up with Revision 17++ 22670 | -3/Research | Discovered new exit (range 4) 22700 | -3/Research | Entered Testing 22925 | -3/Testing | Spotted Striker 22932 | -3/Testing | Spotted Striker 23093 | -3/Testing | Spotted Alpha 7 23094 | -3/Testing | Destroyed Striker 23095 | -3/Testing | Destroyed Striker 23133 | -3/Testing | Destroyed Alpha 7 23503 | -3/Testing | Garrison activated, responded to threat 23964 | -3/Testing | Scanned by Researcher 24041 | -3/Testing | System corruption reached 10% 24243 | -3/Testing | Found Quantum Capacitor 24247 | -3/Testing | Discovered new exit (range 12) 24424 | -3/Testing | Fabricated Humpback? 24602 | -3/Testing | Local fabrication network quarantined 24700 | -3/Testing | First assault squad dispatched 25062 | -3/Testing | Entered Research 25062 | -2/Research | Evolved 2 slots: Power x1, Utility x1 25190 | -2/Research | Identified exit to Quarantine 25301 | -2/Research | Spotted B-90 Cyclops 25317 | -2/Research | Destroyed B-90 Cyclops 25378 | -2/Research | Found Quantum Capacitor 25554 | -2/Research | Found Prototype Processor 25554 | -2/Research | Identified Exp. Terrain Scan Processor 25561 | -2/Research | Found Exp. Terrain Scan Processor 25562 | -2/Research | First assault squad dispatched 25643 | -2/Research | Entered Quarantine 25666 | -2/Quarantine | Found Alien Artifact 25691 | -2/Quarantine | Found Alien Artifact 25984 | -2/Quarantine | System corruption reached 10% 26035 | -2/Quarantine | Found Alien Artifact 26209 | -2/Quarantine | Cryocooling Duct disabled 26224 | -2/Quarantine | Ambient heat levels rising (+20) 26224 | -2/Quarantine | Non-combat units ordered to evacuate 26242 | -2/Quarantine | Met incapacitated Sigix Warrior 26242 | -2/Quarantine | Lockdown squad dispatched 26251 | -2/Quarantine | Acquired the access code to the Sigix quarantine chamber 26255 | -2/Quarantine | Unlocked Sigix quarantine chamber 26299 | -2/Quarantine | Found Launcher Loader 26320 | -2/Quarantine | Spotted Lightning 26320 | -2/Quarantine | Spotted Lightning 26320 | -2/Quarantine | Spotted Lightning 26336 | -2/Quarantine | Identified Phase Armor 26343 | -2/Quarantine | Identified Core Reset Matrix 26343 | -2/Quarantine | Identified Subatomic Replicator 26343 | -2/Quarantine | Used Core Reset Matrix 26347 | -2/Quarantine | Sensed 12 artifacts in vicinity 26384 | -2/Quarantine | Found Transdimensional Reconstructor 26388 | -2/Quarantine | Discovered new exit (range 11) 26389 | -2/Quarantine | Core integrity fell below 50% 26416 | -2/Quarantine | Emitted hypermatrix ping 26421 | -2/Quarantine | Assembled emerged from beneath the floor 26440 | -2/Quarantine | Lost 15 parts (2p5n6u2w) 26452 | -2/Quarantine | Spotted Fortress 26487 | -2/Quarantine | Discovered new exit (range 5) 26489 | -2/Quarantine | Entered Section 7 26490 | -2/Section 7 | Emitted hypermatrix ping 26490 | -2/Section 7 | Sensed 22 artifacts in vicinity 26495 | -2/Section 7 | Assembled emerged from beneath the floor 26496 | -2/Section 7 | Found Prototype Processor 26496 | -2/Section 7 | Identified Spectral Analyzer 26498 | -2/Section 7 | Found Spectral Analyzer 26580 | -2/Section 7 | Spotted B-90 Cyclops 26632 | -2/Section 7 | Core integrity fell below 20% 26644 | -2/Section 7 | Spotted S7 Guard 26647 | -2/Section 7 | Discovered new exit (range 13) 26677 | -2/Section 7 | Entered Access 26677 | -1/Access | Evolved 2 slots: Weapon x2 26745 | -1/Access | Build established: Mutant 27325 | -1/Access | Found Quantum Capacitor 27453 | -1/Access | Garrison activated, responded to threat 27496 | -1/Access | Build established: Scavenger-Gunner 27507 | -1/Access | Found Prototype Ballistic Gun 27507 | -1/Access | Identified Multirail 27544 | -1/Access | Lost 8 parts (2p1n2u3w) 28209 | -1/Access | First assault squad dispatched 28401 | -1/Access | System corruption reached 10% 28452 | -1/Access | Destroyed 9 combat bots 28456 | -1/Access | Warped through subspace 28511 | -1/Access | Lost 13 parts (3p2n5u3w) 28542 | -1/Access | Core integrity fell below 50% 28631 | -1/Access | Discovered new exit (range 7) 28640 | -1/Access | Entered Command 28672 | -1/Command | Emitted hypermatrix ping 28677 | -1/Command | Assembled emerged from beneath the floor 28758 | -1/Command | Assembled emerged from beneath the floor 28890 | -1/Command | First assault squad dispatched 28997 | -1/Command | Assembled emerged from beneath the floor 29005 | -1/Command | Core integrity fell below 20% 29034 | -1/Command | Lost 15 parts (3p2n7u3w) 29089 | -1/Command | Used Subatomic Replicator to replicate Focal Shield 29093 | -1/Command | Destroyed by S-43 Plague with Heavy Machine Gun Last Messages --------------- 29027_ as-27413 destroyed. 29027_ Penetrated by Slug. 29030_ Slug penetrates as-63556. 29031_ System corrupted: Matter fused (-5). 29032_ Y-72 Warden destroyed. 29042_ R-10 Processor inserts Unknown Hover Unit into recycling unit. 29047_ System corrupted: Heat flow error (+262). 29050_ W-44 Eye sends out distress signal. 29052_ as-63556 destroyed. 29056_ as-01813 destroyed. 29056_ as-67034 destroyed. 29058_ Dropped Hvy. Disruptor Cannon. 29062_ as-14983 destroyed. 29079_ Acquired Unknown Device. 29079_ Identified Focal Shield. 29088_ FNW WJZK%Y Map ----- +----------------------------------------------------+ | ?????????????????????????????????????????????????? | | ?????????????????????????????????????????????????? | | ?????????????????????????????????????????????????? | | ?????????????????????????????????????????????????? | | ?????????????????????????????????????????????????? | | ?????????????????????????????????????????????????? | | ?????????????????????????????????????????????????? | | ?????????????????????????????????????????????????? | | ?????????????????????????????????????????????????? | | ?????????????????????????????????????????????????? | | ?????????????????????????????????????????????????? | | ?????????????????????????????????????????????????? | | ?????????????????????????????????????????????????? | | ?????????????????????????????????????????????????? | | ????????????????????##+########??????????????????? | | ????????????????????? #??????????????????? | | ###############?????? #??????????????????? | | #??????? """" #??????????????????? | | #??????? """" #??????????????????? | | #????????"""" #??????????????????? | | #????????"""" ???????????????????? | | ###########/#+#####????? !????????????????????? | | ?????# #????? ?????????????????????? | | ????# #######/#??????????????????????? | | ??# /!! sswk#??????????????????????? | | ## ###### @#??????????????????????? | | ## #????# #??????????????????????? | | ## "" #????# #??????????????????????? | | ###### ! """" #????# #??????????????????????? | | #?# """" #????# #??????????????????????? | | #?# "" #????#k #??????????????????????? | | #?# #????# s#??????????????????????? | | ""#?# #????# s#??????????????????????? | | ""#?# #????#ss#??????????????????????? | | ""#?##############????# s#??????????????????????? | | T????????????????????#s%#??????????????????????? | | ""????????????????????# #??????????????????????? | | "?????????????????????# #??????????????????????? | | "?????????????????????# #??????????????????????? | | ????????????????????# #??????????????????????? | | #???????????????????# #??????????????????????? | | ####???????????????????# #??????????????????????? | | ???????????????????????# #??????????????????????? | | ???????????????????????# ???????????????????????? | | ???????????????????????? ???????????????????????? | | ???????????????????????? ???????????????????????? | | ???????????????????????? k???????????????????????? | | ???????????????????????? ???????????????????????? | | ???????????????????????? ???????????????????????? | | ?????????????????????????????????????????????????? | +----------------------------------------------------+ Best States ------------- Heat Dissipation 130 Coolant Potential 100 Energy Generation 65 Energy Capacity 4380 Matter Stores 534 Matter Capacity 700 Sight Range 24 Terrain Scan Range 24 Terrain Scan Density 1010 ECM Strength 3 Jamming Range 12 Power Amplification 30 Additional Mass Support 12 EM Shielding 4 Armor Coverage 3750 Resistance: KI 30 Resistance: TH 25 Resistance: EX 50 Resistance: EM 90 Propulsion Shielding 66 Weapon Shielding 66 Weapon Cycling 25 Phase Shifting 15 Evasion (%) 55 Targeting Accuracy 12 Target Analysis 8 Armor Integrity Analysis 50 Recoil Reduction 4 Matter Filtering 50 Kinecelleration 30 Stasis Canceling 2 Defensive Hacking 10 Relay Coupler Types 81 Relay Coupler Value 3 Item Schematics ----------------- None Robot Schematics ------------------ None Fabricated ------------ Humpback | x1 | -7/Factory Humpback | x1 | -7/Factory Humpback | x1 | -7/Factory Humpback | x1 | -5/Factory Humpback | x1 | -3/Testing Alien Tech Used ----------------- Phase Armor Core Reset Matrix Transdimensional Reconstructor Subatomic Replicator Achievements -------------- 404 Challenges ------------ None Game ------ Seed AssaultChainFalx Manual? 0 Play Time 03:45:01 Cumulative 324.2 hours Start 2021.02.17 @ 19:24:52 End 2021.02.17 @ 23:41:22 Sessions 1 Manual Loads 0 Difficulty Rogue Special Mode None Game No. 259 Rogue 252 Adventurer 0 Explorer 7 Win Type - Total 11 Types 3/1/7/0/0/0/0/0/0 Lore% 78 Gallery% 93 Achievement% 75 Wizard Run 0 Options --------- ASCII 0 Keyboard 0 Movement Numpad Keybinds 0 Fullscreen 1 Font 18/X11Bold Map View 76x50 Tactical HUD 1 Map Filters NONE Filters NONE Steam 1 RUN: 47e92d34-22b9-4fdb-94d2-583d511e7b12